[Event "6th Cesme Open-A 2018"]
[Site "Cesme"]
[Date "2018.06.30"]
[Round "8.8"]
[White "Zeynalli, Rashad Hamza"]
[Black "Danin, Alexandre"]
[Result "1-0"]
[ECO "C11"]
[WhiteElo "2295"]
[BlackElo "2539"]
[Annotator "ChessBase"]
[PlyCount "181"]
[EventDate "2018.06.26"]
[EventType "swiss"]
[EventCountry "TUR"]
[SourceTitle "playchess.com"]
[Source "ChessBase"]
[SourceQuality "1"]
[TimeControl "5400+30"]

1. e4 {[%emt 0:00:30]} e6 {[%emt 0:00:30]} 2. d4 {[%emt 0:00:30]} d5 {[%emt 0:00:00]} 3. Nc3 {[%emt 0:00:30]} Nf6 {[%emt 0:00:00]} 4. e5 {[%emt 0:00:30]} Nfd7 {[%emt 0:00:30]} 5. f4 {[%emt 0:00:00]} c5 {[%emt 0:00:30]} 6. Nf3 {[%emt 0:00:00]} Nc6 {[%emt 0:03:30]} 7. Be3 {[%emt 0:00:00]} cxd4 {[%emt 0:00:30]} 8. Nxd4 {[%emt 0:00:00]} Bc5 {[%emt 0:00:30]} 9. Qd2 {[%emt 0:00:00]} O-O {[%emt 0:00:00]} 10. O-O-O {[%emt 0:01:00]} a6 {[%emt 0:00:00]} 11. Nb3 {[%emt 0:00:00]} b6 {[%emt 0:00:00]} 12. g4 {[%emt 0:03:00]} Qe7 {[%emt 0:06:00]} 13. Rg1 {[%emt 0:01:30]} Bb7 {[%emt 0:04:30]} 14. Rg3 {[%emt 0:02:30]} Bxe3 {[%emt 0:07:30]} 15. Qxe3 {[%emt 0:02:30]} Nc5 {[%emt 0:00:30]} 16. Rh3 {[%emt 0:02:30]} f6 {[%emt 0:13:30]} 17. exf6 {[%emt 0:03:30]} Qxf6 {[%emt 0:01:30]} 18. Nxc5 {[%emt 0:02:30]} bxc5 {[%emt 0:00:30]} 19. Bd3 {[%emt 0:02:30]} g6 {[%emt 0:05:30]} 20. f5 {[%emt 0:02:30]} c4 {[%emt 0:11:30]} 21. Qh6 {[%emt 0:03:30]} Qg7 {[%emt 0:02:30]} 22. Qxg7+ {[%emt 0:03:30]} Kxg7 {[%emt 0:00:30]} 23. Bxc4 {[%emt 0:03:30]} Ne5 {[%emt 0:11:30]} 24. fxg6 {[%emt 0:03:30]} Nxg6 {[%emt 0:00:30]} 25. Bd3 {[%emt 0:02:30]} Rf2 {[%emt 0:03:30]} 26. Re1 {[%emt 0:04:30]} Re8 {[%emt 0:01:30]} 27. Rh5 {[%emt 0:03:30]} Bc6 {[%emt 0:05:30]} 28. b4 {[%emt 0:03:30]} Rf4 {[%emt 0:03:34]} 29. b5 {[%emt 0:05:30]} axb5 {[%emt 0:00:48]} 30. Nxb5 {[%emt 0:02:30]} Bxb5 {[%emt 0:04:43]} 31. Bxb5 {[%emt 0:00:30]} Re7 {[%emt 0:00:12]} 32. h3 {[%emt 0:04:30]} Kf6 {[%emt 0:02:04]} 33. a4 {[%emt 0:05:30]} Rf2 {[%emt 0:02:15]} 34. Bd3 {[%emt 0:02:30]} Rf4 {[%emt 0:00:54]} 35. Bb5 {[%emt 0:05:30]} Rf3 {[%emt 0:05:15]} 36. h4 {[%emt 0:05:30]} Rf4 {[%emt 0:01:08]} 37. Rf1 {[%emt 0:01:30]} Rxf1+ {[%emt 0:03:02]} 38. Bxf1 {[%emt 0:00:30]} Ra7 {[%emt 0:00:30]} 39. Bb5 {[%emt 0:00:30]} Kg7 {[%emt 0:00:30]} 40. g5 {[%emt 0:01:30]} Ne5 {[%emt 0:00:37]} 41. Rh6 {[%emt 0:01:09]} Re7 {[%emt 0:00:00]} 42. Rf6 {[%emt 0:00:55]} Nf7 {[%emt 0:00:08]} 43. Bd3 {[%emt 0:02:24]} h6 {[%emt 0:02:01]} 44. Rg6+ {[%emt 0:01:27]} Kh8 {[%emt 0:00:01]} 45. gxh6 {[%emt 0:01:10]} Ne5 {[%emt 0:00:30]} 46. Rg7 {[%emt 0:00:30]} Nxd3+ {[%emt 0:00:30]} 47. cxd3 {[%emt 0:00:00]} Re8 {[%emt 0:00:00]} 48. Ra7 {[%emt 0:04:50]} Rb8 {[%emt 0:00:31]} 49. Kc2 {[%emt 0:02:50]} Rb4 {[%emt 0:00:39]} 50. Kc3 {[%emt 0:01:17]} Rxh4 {[%emt 0:00:06]} 51. d4 {[%emt 0:01:17]} Rh3+ {[%emt 0:00:56]} 52. Kb4 {[%emt 0:01:30]} Rd3 {[%emt 0:00:05]} 53. Kc5 {[%emt 0:00:40]} Rc3+ {[%emt 0:00:01]} 54. Kd6 {[%emt 0:01:32]} Rd3 {[%emt 0:00:20]} 55. Kc5 {[%emt 0:01:35]} Rc3+ {[%emt 0:00:01]} 56. Kd6 {[%emt 0:02:17]} Rd3 {[%emt 0:00:03]} 57. Kxe6 {[%emt 0:00:21]} Rxd4 {[%emt 0:00:06]} 58. Ke5 {[%emt 0:01:18]} Rd1 {[%emt 0:03:07]} 59. Rd7 {[%emt 0:01:36]} Ra1 {[%emt 0:00:30]} 60. Ra7 {[%emt 0:00:00]} Rd1 {[%emt 0:00:00]} 61. Rb7 {[%emt 0:01:01]} d4 {[%emt 0:00:11]} 62. Rb4 {[%emt 0:00:31]} d3 {[%emt 0:00:18]} 63. Kd4 {[%emt 0:00:40]} Kh7 {[%emt 0:00:43]} 64. Kc3 {[%emt 0:00:38]} Kxh6 {[%emt 0:00:30]} 65. Rd4 {[%emt 0:00:00]} Kg6 {[%emt 0:01:56]} 66. Rxd3 {[%emt 0:00:00]} Ra1 {[%emt 0:01:08]} 67. Kb4 {[%emt 0:00:17]} Kf6 {[%emt 0:00:22]} 68. Re3 {[%emt 0:00:11]} Rb1+ {[%emt 0:01:06]} 69. Kc5 {[%emt 0:00:54]} Rc1+ {[%emt 0:00:00]} 70. Kb6 {[%emt 0:00:30]} Rb1+ {[%emt 0:00:00]} 71. Ka6 {[%emt 0:00:00]} Rd1 {[%emt 0:01:25]} 72. a5 {[%emt 0:00:00]} Rb1 {[%emt 0:00:13]} 73. Ka7 {[%emt 0:00:09]} Kf7 {[%emt 0:00:30]} 74. a6 {[%emt 0:00:00]} Rb2 {[%emt 0:00:00]} 75. Ka8 {[%emt 0:00:10]} Rb1 {[%emt 0:00:14]} 76. a7 {[%emt 0:00:30]} Rb2 {[%emt 0:00:00]} 77. Rh3 {[%emt 0:00:00]} Ke7 {[%emt 0:00:00]} 78. Rh8 {[%emt 0:00:00]} Kd6 {[%emt 0:00:08]} 79. Rb8 {[%emt 0:00:00]} Ra2 {[%emt 0:00:41]} 80. Kb7 {[%emt 0:00:29]} Rb2+ {[%emt 0:00:00]} 81. Kc8 {[%emt 0:00:39]} Rc2+ {[%emt 0:00:00]} 82. Kd8 {[%emt 0:02:18]} Rh2 {[%emt 0:00:00]} 83. Rb6+ {[%emt 0:00:45]} Kc5 {[%emt 0:00:00]} 84. Rc6+ {[%emt 0:00:22]} Kxc6 {[%emt 0:00:11]} 85. a8=Q+ {[%emt 0:00:30]} Kc5 {[%emt 0:00:00]} 86. Qc8+ {[%emt 0:00:00]} Kd4 {[%emt 0:00:37]} 87. Qg4+ {[%emt 0:00:00]} Kd5 {[%emt 0:00:19]} 88. Qf5+ {[%emt 0:00:00]} Kc6 {[%emt 0:00:05]} 89. Qe6+ {[%emt 0:00:23]} Kb7 {[%emt 0:00:30]} 90. Qd7+ {[%emt 0:00:00]} Ka8 {[%emt 0:00:00]} 91. Qc6+ {[%emt 0:00:00]} 1-0

[Event "6th Cesme Open-A 2018"]
[Site "Cesme"]
[Date "2018.06.30"]
[Round "8.9"]
[White "Sanal, Vahap"]
[Black "Guseynov, Alihan"]
[Result "1-0"]
[ECO "A32"]
[WhiteElo "2510"]
[BlackElo "2341"]
[Annotator "ChessBase"]
[PlyCount "81"]
[EventDate "2018.06.26"]
[EventType "swiss"]
[EventCountry "TUR"]
[SourceTitle "playchess.com"]
[Source "ChessBase"]
[SourceQuality "1"]
[TimeControl "5400+30"]

1. d4 {[%emt 0:04:30]} Nf6 {[%emt 0:01:30]} 2. Nf3 {[%emt 0:00:30]} e6 {[%emt 0:02:30]} 3. c4 {[%emt 0:00:30]} c5 {[%emt 0:00:30]} 4. g3 {[%emt 0:00:30]} cxd4 {[%emt 0:00:30]} 5. Nxd4 {[%emt 0:00:00]} a6 {[%emt 0:05:30]} 6. Bg2 {[%emt 0:00:00]} Qc7 {[%emt 0:00:30]} 7. Nc3 {[%emt 0:00:30]} Qxc4 {[%emt 0:01:30]} 8. O-O {[%emt 0:01:30]} Nc6 {[%emt 0:05:30]} 9. Nb3 {[%emt 0:02:30]} d5 {[%emt 0:02:30]} 10. Bf4 {[%emt 0:19:30]} Be7 {[%emt 0:01:30]} 11. a3 {[%emt 0:07:30]} a5 {[%emt 0:01:30]} 12. Rc1 {[%emt 0:04:30]} Qa6 {[%emt 0:00:30]} 13. a4 {[%emt 0:02:30]} O-O {[%emt 0:03:30]} 14. Nb5 {[%emt 0:00:30]} Qb6 {[%emt 0:00:30]} 15. Bc7 {[%emt 0:00:30]} Qa6 {[%emt 0:00:30]} 16. Nc5 {[%emt 0:05:30]} Bxc5 {[%emt 0:00:30]} 17. Rxc5 {[%emt 0:00:30]} Bd7 {[%emt 0:29:30]} 18. Bd6 {[%emt 0:06:30]} Rfc8 {[%emt 0:02:30]} 19. Nc7 {[%emt 0:01:30]} Qa7 {[%emt 0:01:30]} 20. Nxa8 {[%emt 0:00:30]} Ne8 {[%emt 0:00:30]} 21. Nb6 {[%emt 0:09:30]} Qxb6 {[%emt 0:00:30]} 22. Rb5 {[%emt 0:00:30]} Qa6 {[%emt 0:01:30]} 23. Bc5 {[%emt 0:01:30]} Ne5 {[%emt 0:08:30]} 24. Rb6 {[%emt 0:01:30]} Qa8 {[%emt 0:00:30]} 25. Qd4 {[%emt 0:03:30]} Nc4 {[%emt 0:01:30]} 26. Rb3 {[%emt 0:00:30]} e5 {[%emt 0:05:30]} 27. Qxd5 {[%emt 0:01:30]} Be6 {[%emt 0:00:30]} 28. Qxb7 {[%emt 0:00:30]} Qxb7 {[%emt 0:00:30]} 29. Rxb7 {[%emt 0:00:00]} Rxc5 {[%emt 0:00:00]} 30. Rc1 {[%emt 0:00:00]} Rc8 {[%emt 0:11:09]} 31. b3 {[%emt 0:01:30]} Ned6 {[%emt 0:06:38]} 32. Ra7 {[%emt 0:00:30]} Nb6 {[%emt 0:00:26]} 33. Rxc8+ {[%emt 0:01:30]} Ndxc8 {[%emt 0:00:09]} 34. Rxa5 {[%emt 0:01:30]} Bxb3 {[%emt 0:00:04]} 35. Bc6 {[%emt 0:00:30]} f6 {[%emt 0:00:59]} 36. Rc5 {[%emt 0:00:30]} Bc4 {[%emt 0:03:33]} 37. a5 {[%emt 0:02:30]} Bxe2 {[%emt 0:00:08]} 38. Bb7 {[%emt 0:00:30]} Bg4 {[%emt 0:00:48]} 39. Rc6 {[%emt 0:00:30]} Bf3 {[%emt 0:02:10]} 40. axb6 {[%emt 0:01:30]} Bxc6 {[%emt 0:00:30]} 41. Bxc8 {[%emt 0:00:30]} 1-0

[Event "6th Cesme Open-A 2018"]
[Site "Cesme"]
[Date "2018.06.30"]
[Round "8.10"]
[White "Haznedaroglu, Kivanc"]
[Black "Charkhalashvili, Inga"]
[Result "0-1"]
[ECO "A25"]
[WhiteElo "2472"]
[BlackElo "2325"]
[Annotator "ChessBase"]
[PlyCount "72"]
[EventDate "2018.06.26"]
[EventType "swiss"]
[EventCountry "TUR"]
[SourceTitle "playchess.com"]
[Source "ChessBase"]
[SourceQuality "1"]
[TimeControl "5400+30"]

1. c4 {[%emt 0:04:30]} e5 {[%emt 0:01:30]} 2. Nc3 {[%emt 0:00:00]} Nc6 {[%emt 0:00:30]} 3. g3 {[%emt 0:00:00]} g6 {[%emt 0:00:00]} 4. Bg2 {[%emt 0:00:30]} Bg7 {[%emt 0:00:00]} 5. e3 {[%emt 0:00:00]} Nge7 {[%emt 0:00:30]} 6. Nge2 {[%emt 0:00:00]} d6 {[%emt 0:00:30]} 7. O-O {[%emt 0:00:00]} O-O {[%emt 0:01:30]} 8. Rb1 {[%emt 0:00:00]} Bf5 {[%emt 0:03:30]} 9. d3 {[%emt 0:00:30]} Qd7 {[%emt 0:00:00]} 10. b4 {[%emt 0:02:30]} Bh3 {[%emt 0:01:00]} 11. Bxh3 {[%emt 0:03:30]} Qxh3 {[%emt 0:00:30]} 12. b5 {[%emt 0:00:00]} Nd8 {[%emt 0:00:30]} 13. Nd5 {[%emt 0:00:00]} Qd7 {[%emt 0:00:30]} 14. Nec3 {[%emt 0:00:30]} Ne6 {[%emt 0:03:30]} 15. Bb2 {[%emt 0:01:30]} Nf5 {[%emt 0:08:30]} 16. Ne4 {[%emt 0:05:30]} Qd8 {[%emt 0:00:30]} 17. Qf3 {[%emt 0:03:30]} Rc8 {[%emt 0:05:30]} 18. Ba3 {[%emt 0:04:30]} Kh8 {[%emt 0:07:30]} 19. Rfc1 {[%emt 0:09:30]} Nh6 {[%emt 0:06:30]} 20. Nd2 {[%emt 0:14:30]} f5 {[%emt 0:00:30]} 21. Qe2 {[%emt 0:00:30]} c6 {[%emt 0:04:30]} 22. bxc6 {[%emt 0:00:30]} bxc6 {[%emt 0:00:30]} 23. Nc3 {[%emt 0:00:30]} Rf7 {[%emt 0:00:00]} 24. Bb2 {[%emt 0:01:30]} g5 {[%emt 0:08:00]} 25. Nb3 {[%emt 0:05:30]} g4 {[%emt 0:01:30]} 26. d4 {[%emt 0:00:30]} Ng5 {[%emt 0:01:30]} 27. dxe5 {[%emt 0:03:30]} dxe5 {[%emt 0:00:30]} 28. Rd1 {[%emt 0:01:30]} Qf8 {[%emt 0:02:30]} 29. Kh1 {[%emt 0:09:30]} f4 {[%emt 0:03:30]} 30. exf4 {[%emt 0:10:30]} exf4 {[%emt 0:00:30]} 31. Rd2 {[%emt 0:00:30]} Re8 {[%emt 0:00:30]} 32. Qd1 {[%emt 0:00:30]} fxg3 {[%emt 0:02:30]} 33. fxg3 {[%emt 0:03:12]} Nh3 {[%emt 0:01:30]} 34. Qc1 {[%emt 0:00:38]} Rf2 {[%emt 0:00:30]} 35. Qd1 {[%emt 0:07:49]} Re1+ {[%emt 0:00:30]} 36. Qxe1 {[%emt 0:00:03]} Qf3# {[%emt 0:00:00]} 0-1

[Event "6th Cesme Open-A 2018"]
[Site "Cesme"]
[Date "2018.06.30"]
[Round "8.11"]
[White "Odeev, Handszar"]
[Black "Agdelen, Huseyin Can"]
[Result "1/2-1/2"]
[ECO "B90"]
[WhiteElo "2415"]
[BlackElo "2276"]
[Annotator "NA"]
[PlyCount "64"]
[EventDate "2018.06.26"]
[EventType "swiss"]
[EventCountry "TUR"]
[SourceTitle "playchess.com"]
[Source "ChessBase"]
[SourceQuality "1"]
[TimeControl "5400+30"]

1. e4 {[%emt 0:11:30]} c5 {[%emt 0:00:30]} 2. Nf3 {[%emt 0:00:30]} d6 {[%emt 0:00:00]} 3. d4 {[%emt 0:00:30]} cxd4 {[%emt 0:00:00]} 4. Nxd4 {[%emt 0:00:30]} Nf6 {[%emt 0:00:00]} 5. Nc3 {[%emt 0:00:00]} a6 {[%emt 0:00:00]} 6. Bd3 {[%emt 0:01:00]} e5 {[%emt 0:06:30]} 7. Nde2 {[%emt 0:03:30]} Be7 {[%emt 0:01:30]} 8. O-O {[%emt 0:00:30]} O-O {[%emt 0:00:30]} 9. Ng3 {[%emt 0:09:30]} Be6 {[%emt 0:20:30]} 10. h3 {[%emt 0:02:30]} Nbd7 {[%emt 0:06:30]} 11. Be3 {[%emt 0:05:30]} Rc8 {[%emt 0:03:30]} 12. f4 {[%emt 0:09:30]} Re8 {[%emt 0:09:30]} 13. f5 {[%emt 0:11:30]} Bc4 {[%emt 0:00:30]} 14. Qe2 {[%emt 0:00:00]} Bxd3 {[%emt 0:01:30]} 15. Qxd3 {[%emt 0:00:00]} Qa5 {[%emt 0:04:30]} 16. a3 {[%emt 0:05:30]} b5 {[%emt 0:02:30]} 17. Rfd1 {[%emt 0:01:30]} Rc6 {[%emt 0:05:30]} 18. Nf1 {[%emt 0:05:30]} Rec8 {[%emt 0:00:30]} 19. Bf2 {[%emt 0:01:30]} Qc7 {[%emt 0:03:30]} 20. Qf3 {[%emt 0:05:30]} Qb7 {[%emt 0:02:30]} 21. Rd3 {[%emt 0:02:30]} a5 {[%emt 0:01:30]} 22. Ne3 {[%emt 0:02:30]} Nc5 {[%emt 0:02:30]} 23. Rdd1 {[%emt 0:03:53]} b4 {[%emt 0:01:30]} 24. axb4 {[%emt 0:00:30]} axb4 {[%emt 0:00:00]} 25. Ncd5 {[%emt 0:00:00]} Ncxe4 {[%emt 0:01:00]} 26. Be1 {[%emt 0:02:27]} b3 {[%emt 0:04:30]} 27. cxb3 {[%emt 0:02:04]} Bd8 {[%emt 0:00:30]} 28. Nxf6+ {[%emt 0:01:26]} Nxf6 {[%emt 0:00:00]} 29. Rxd6 {[%emt 0:00:25]} e4 {[%emt 0:01:00]} 30. Qd1 {[%emt 0:00:24]} Rxd6 {[%emt 0:00:30]} 31. Qxd6 {[%emt 0:00:04]} Qxb3 {[%emt 0:00:30]} 32. Qa3 {[%emt 0:03:07]} Be7 {[%emt 0:07:31]} 1/2-1/2

[Event "6th Cesme Open-A 2018"]
[Site "Cesme"]
[Date "2018.06.30"]
[Round "8.12"]
[White "Ozen, Deniz"]
[Black "Abdulla, Khayala Mardan Qizi"]
[Result "1/2-1/2"]
[ECO "B22"]
[WhiteElo "2408"]
[BlackElo "2231"]
[Annotator "ChessBase"]
[PlyCount "109"]
[EventDate "2018.06.26"]
[EventType "swiss"]
[EventCountry "TUR"]
[SourceTitle "playchess.com"]
[Source "ChessBase"]
[SourceQuality "1"]
[TimeControl "5400+30"]

1. e4 {[%emt 0:04:30]} c5 {[%emt 0:03:30]} 2. Nf3 {[%emt 0:00:30]} e6 {[%emt 0:00:30]} 3. c3 {[%emt 0:00:00]} d5 {[%emt 0:00:30]} 4. exd5 {[%emt 0:00:00]} Qxd5 {[%emt 0:00:00]} 5. d4 {[%emt 0:00:30]} Nf6 {[%emt 0:00:00]} 6. Be3 {[%emt 0:00:30]} Nc6 {[%emt 0:05:30]} 7. Bd3 {[%emt 0:02:30]} Be7 {[%emt 0:02:30]} 8. O-O {[%emt 0:02:30]} O-O {[%emt 0:00:30]} 9. h3 {[%emt 0:03:30]} Rd8 {[%emt 0:04:30]} 10. Qe2 {[%emt 0:00:30]} b6 {[%emt 0:04:30]} 11. Bc4 {[%emt 0:09:30]} Qh5 {[%emt 0:02:30]} 12. dxc5 {[%emt 0:00:30]} Bxc5 {[%emt 0:01:30]} 13. Bg5 {[%emt 0:03:30]} Be7 {[%emt 0:02:30]} 14. Nbd2 {[%emt 0:08:30]} Bb7 {[%emt 0:04:30]} 15. Bxf6 {[%emt 0:02:30]} Bxf6 {[%emt 0:02:30]} 16. Ne4 {[%emt 0:00:30]} Be7 {[%emt 0:03:30]} 17. Ba6 {[%emt 0:03:30]} Bxa6 {[%emt 0:07:30]} 18. Qxa6 {[%emt 0:02:30]} Qd5 {[%emt 0:00:00]} 19. Rfe1 {[%emt 0:05:30]} Ne5 {[%emt 0:04:00]} 20. Nxe5 {[%emt 0:01:30]} Qxe5 {[%emt 0:00:00]} 21. Qb7 {[%emt 0:01:30]} Bf8 {[%emt 0:09:00]} 22. a4 {[%emt 0:11:30]} Qd5 {[%emt 0:02:30]} 23. Qa6 {[%emt 0:01:30]} Qb3 {[%emt 0:02:30]} 24. Qb5 {[%emt 0:01:30]} Qd5 {[%emt 0:02:30]} 25. Qa6 {[%emt 0:06:30]} Qb3 {[%emt 0:01:30]} 26. Qb5 {[%emt 0:00:30]} Qd5 {[%emt 0:00:30]} 27. Rad1 {[%emt 0:02:30]} Qb7 {[%emt 0:04:30]} 28. Qe2 {[%emt 0:03:30]} Qc7 {[%emt 0:01:30]} 29. Rxd8 {[%emt 0:01:30]} Rxd8 {[%emt 0:00:30]} 30. Rd1 {[%emt 0:00:00]} Rxd1+ {[%emt 0:01:30]} 31. Qxd1 {[%emt 0:00:00]} Qe5 {[%emt 0:00:00]} 32. Qe2 {[%emt 0:03:53]} f5 {[%emt 0:10:00]} 33. Ng3 {[%emt 0:01:05]} Bd6 {[%emt 0:01:05]} 34. Qxe5 {[%emt 0:04:32]} Bxe5 {[%emt 0:00:30]} 35. Ne2 {[%emt 0:00:00]} Kf7 {[%emt 0:00:39]} 36. f4 {[%emt 0:00:01]} Bd6 {[%emt 0:02:16]} 37. Kf2 {[%emt 0:00:28]} e5 {[%emt 0:01:07]} 38. fxe5 {[%emt 0:00:30]} Bxe5 {[%emt 0:00:00]} 39. Ke3 {[%emt 0:00:08]} Ke6 {[%emt 0:00:57]} 40. Ng1 {[%emt 0:03:29]} Kd5 {[%emt 0:01:15]} 41. Kd3 {[%emt 0:00:14]} a5 {[%emt 0:01:32]} 42. Nf3 {[%emt 0:00:30]} Bd6 {[%emt 0:02:18]} 43. Nd4 {[%emt 0:02:31]} g6 {[%emt 0:00:02]} 44. Nc2 {[%emt 0:00:00]} h5 {[%emt 0:01:45]} 45. b4 {[%emt 0:01:07]} axb4 {[%emt 0:00:20]} 46. cxb4 {[%emt 0:00:08]} Bc7 {[%emt 0:04:31]} 47. Ne3+ {[%emt 0:02:54]} Ke5 {[%emt 0:00:01]} 48. Nc4+ {[%emt 0:00:32]} Kf4 {[%emt 0:01:38]} 49. Ke2 {[%emt 0:00:07]} Kg3 {[%emt 0:04:32]} 50. Kf1 {[%emt 0:00:05]} g5 {[%emt 0:00:33]} 51. a5 {[%emt 0:05:39]} bxa5 {[%emt 0:00:30]} 52. bxa5 {[%emt 0:00:00]} g4 {[%emt 0:00:27]} 53. a6 {[%emt 0:00:47]} gxh3 {[%emt 0:00:57]} 54. gxh3 {[%emt 0:00:30]} Bb8 {[%emt 0:00:00]} 55. h4 {[%emt 0:01:26]} 1/2-1/2

[Event "6th Cesme Open-A 2018"]
[Site "Cesme"]
[Date "2018.06.30"]
[Round "8.13"]
[White "Rzayev, Bahruz Iqbal Oglu"]
[Black "Isik, Engin Yasar"]
[Result "1-0"]
[ECO "E61"]
[WhiteElo "2405"]
[BlackElo "2156"]
[Annotator "NA"]
[PlyCount "107"]
[EventDate "2018.06.26"]
[EventType "swiss"]
[EventCountry "TUR"]
[SourceTitle "playchess.com"]
[Source "ChessBase"]
[SourceQuality "1"]
[TimeControl "5400+30"]

1. c4 {[%emt 0:00:30]} g6 {[%emt 0:00:30]} 2. Nc3 {[%emt 0:00:30]} Bg7 {[%emt 0:00:00]} 3. g3 {[%emt 0:00:30]} d6 {[%emt 0:00:00]} 4. d4 {[%emt 0:00:30]} Nf6 {[%emt 0:00:30]} 5. Bg2 {[%emt 0:00:00]} O-O {[%emt 0:00:00]} 6. e3 {[%emt 0:01:00]} c6 {[%emt 0:06:00]} 7. d5 {[%emt 0:03:30]} cxd5 {[%emt 0:00:30]} 8. cxd5 {[%emt 0:00:30]} Na6 {[%emt 0:04:30]} 9. Nge2 {[%emt 0:00:00]} Bd7 {[%emt 0:02:30]} 10. O-O {[%emt 0:00:00]} b5 {[%emt 0:00:30]} 11. a3 {[%emt 0:02:30]} Rc8 {[%emt 0:14:30]} 12. h3 {[%emt 0:04:30]} Qb6 {[%emt 0:06:30]} 13. e4 {[%emt 0:00:30]} Qb8 {[%emt 0:02:30]} 14. Be3 {[%emt 0:00:30]} Nc7 {[%emt 0:01:30]} 15. f4 {[%emt 0:03:30]} Na8 {[%emt 0:00:30]} 16. Bd4 {[%emt 0:11:30]} Nb6 {[%emt 0:00:30]} 17. Kh2 {[%emt 0:00:30]} a5 {[%emt 0:02:30]} 18. b3 {[%emt 0:05:30]} Rc7 {[%emt 0:13:30]} 19. Qd3 {[%emt 0:04:30]} Nc8 {[%emt 0:04:30]} 20. a4 {[%emt 0:06:30]} b4 {[%emt 0:04:30]} 21. Nb1 {[%emt 0:00:30]} Ne8 {[%emt 0:03:30]} 22. Nd2 {[%emt 0:01:30]} Bxd4 {[%emt 0:05:30]} 23. Qxd4 {[%emt 0:05:30]} Nb6 {[%emt 0:04:30]} 24. g4 {[%emt 0:06:30]} Bc8 {[%emt 0:00:30]} 25. e5 {[%emt 0:02:30]} Ba6 {[%emt 0:00:30]} 26. Rfe1 {[%emt 0:00:30]} Bxe2 {[%emt 0:02:46]} 27. Rxe2 {[%emt 0:00:00]} Rc3 {[%emt 0:00:14]} 28. Rae1 {[%emt 0:00:00]} Nc8 {[%emt 0:01:51]} 29. Nc4 {[%emt 0:02:30]} dxe5 {[%emt 0:02:26]} 30. fxe5 {[%emt 0:04:30]} Qc7 {[%emt 0:01:51]} 31. Re3 {[%emt 0:00:30]} Rxe3 {[%emt 0:00:31]} 32. Qxe3 {[%emt 0:00:30]} Ng7 {[%emt 0:02:36]} 33. Kh1 {[%emt 0:01:30]} f5 {[%emt 0:00:29]} 34. exf6 {[%emt 0:06:30]} Rxf6 {[%emt 0:00:03]} 35. Ne5 {[%emt 0:00:30]} e6 {[%emt 0:10:20]} 36. Rc1 {[%emt 0:03:30]} Qd8 {[%emt 0:00:30]} 37. Qc5 {[%emt 0:00:30]} Rf8 {[%emt 0:01:09]} 38. dxe6 {[%emt 0:01:30]} Ne7 {[%emt 0:01:57]} 39. Nc6 {[%emt 0:01:30]} Nxc6 {[%emt 0:00:30]} 40. Qxc6 {[%emt 0:00:30]} Qe7 {[%emt 0:01:08]} 41. Qd7 {[%emt 0:02:30]} Qg5 {[%emt 0:01:02]} 42. Rd1 {[%emt 0:01:43]} h5 {[%emt 0:00:26]} 43. e7 {[%emt 0:00:49]} Re8 {[%emt 0:00:35]} 44. Qd5+ {[%emt 0:00:05]} Qxd5 {[%emt 0:00:18]} 45. Bxd5+ {[%emt 0:00:01]} Kh7 {[%emt 0:00:22]} 46. Re1 {[%emt 0:00:02]} hxg4 {[%emt 0:00:12]} 47. hxg4 {[%emt 0:01:02]} Rb8 {[%emt 0:00:20]} 48. Bc6 {[%emt 0:00:43]} Ne8 {[%emt 0:00:02]} 49. Rd1 {[%emt 0:00:21]} Rc8 {[%emt 0:00:53]} 50. Bd7 {[%emt 0:00:00]} Rb8 {[%emt 0:00:30]} 51. Bb5 {[%emt 0:00:14]} Rc8 {[%emt 0:01:21]} 52. Rd8 {[%emt 0:00:00]} Rc1+ {[%emt 0:00:21]} 53. Kg2 {[%emt 0:00:00]} Rc2+ {[%emt 0:00:00]} 54. Kf1 {[%emt 0:00:30]} 1-0

[Event "6th Cesme Open-A 2018"]
[Site "Cesme"]
[Date "2018.06.30"]
[Round "8.14"]
[White "Koksal, Ege"]
[Black "Yaramis, Hakan"]
[Result "1-0"]
[ECO "D61"]
[WhiteElo "2356"]
[BlackElo "1983"]
[Annotator "NA"]
[PlyCount "59"]
[EventDate "2018.06.26"]
[EventType "swiss"]
[EventCountry "TUR"]
[SourceTitle "playchess.com"]
[Source "ChessBase"]
[SourceQuality "1"]
[TimeControl "5400+30"]

1. d4 {[%emt 0:02:30]} d5 {[%emt 0:00:30]} 2. c4 {[%emt 0:00:30]} e6 {[%emt 0:00:30]} 3. Nc3 {[%emt 0:00:00]} Nf6 {[%emt 0:00:00]} 4. Nf3 {[%emt 0:00:00]} c6 {[%emt 0:00:00]} 5. Bg5 {[%emt 0:00:00]} Be7 {[%emt 0:01:30]} 6. e3 {[%emt 0:00:00]} Nbd7 {[%emt 0:00:30]} 7. Qc2 {[%emt 0:00:30]} O-O {[%emt 0:01:30]} 8. Rd1 {[%emt 0:00:00]} a6 {[%emt 0:02:30]} 9. cxd5 {[%emt 0:01:00]} cxd5 {[%emt 0:01:30]} 10. Bd3 {[%emt 0:00:00]} Re8 {[%emt 0:02:30]} 11. O-O {[%emt 0:00:00]} h6 {[%emt 0:01:30]} 12. Bf4 {[%emt 0:00:30]} Qa5 {[%emt 0:07:30]} 13. Rc1 {[%emt 0:02:30]} Nh5 {[%emt 0:04:30]} 14. Be5 {[%emt 0:00:30]} Nxe5 {[%emt 0:00:30]} 15. dxe5 {[%emt 0:00:00]} f5 {[%emt 0:03:30]} 16. Nd4 {[%emt 0:05:00]} g6 {[%emt 0:03:30]} 17. g4 {[%emt 0:02:30]} Ng7 {[%emt 0:01:30]} 18. gxf5 {[%emt 0:00:30]} gxf5 {[%emt 0:00:30]} 19. Nce2 {[%emt 0:01:30]} Bg5 {[%emt 0:02:30]} 20. Kh1 {[%emt 0:01:30]} Qd8 {[%emt 0:07:30]} 21. Rg1 {[%emt 0:09:30]} Kh7 {[%emt 0:04:30]} 22. Rg2 {[%emt 0:05:30]} Re7 {[%emt 0:03:30]} 23. Nf3 {[%emt 0:02:30]} Rf7 {[%emt 0:00:30]} 24. Nxg5+ {[%emt 0:02:30]} hxg5 {[%emt 0:00:30]} 25. Rcg1 {[%emt 0:00:30]} Bd7 {[%emt 0:00:30]} 26. Rxg5 {[%emt 0:02:30]} Rc8 {[%emt 0:00:30]} 27. Qd2 {[%emt 0:02:30]} Qc7 {[%emt 0:01:30]} 28. f4 {[%emt 0:01:30]} Bb5 {[%emt 0:01:30]} 29. Bxb5 {[%emt 0:00:30]} axb5 {[%emt 0:00:30]} 30. Nd4 {[%emt 0:00:30]} 1-0